Workbook

Sheet P(1)
A1: Calculate the commission in dollars
A3: SalesRep | B3: Sales | C3: Commission In Dollars | F3: Sales | G3: Com. Rate
A4: Denise | B4: 3681 | F4: 0 | G4: 0
A5: Thongtara | B5: 1190 | F5: 200 | G5: 0.01
A6: Chris | B6: 3136 | F6: 500 | G6: 0.015
A7: Ewelina | B7: 1032 | F7: 1000 | G7: 0.02
A8: Janita | B8: 258 | F8: 5000 | G8: 0.05
A9: Elain | B9: 5500
A10: Gianna | B10: 4596
A11: Richard | B11: 2227
A12: Elain | B12: 966
A13: Michael | B13: 2903
A14: Ewelina | B14: 4646
A15: Michelle | B15: 4692
A16: Jason | B16: 2752
A17: Craig | B17: 611
A18: Sarah | B18: 457
A19: Mansa | B19: 155
A20: Michelle | B20: 990
A21: Shari | B21: 1079
A22: Richard | B22: 5275
A23: Christina | B23: 4172
A24: Denise | B24: 358
A25: Richard | B25: 1199
A26: Thongtara | B26: 3946
A27: Michelle | B27: 4550
A28: Michelle | B28: 4470
A29: Shari | B29: 4333
A30: Carol | B30: 1208
A31: Kaur | B31: 4626
A32: Mitchell | B32: 4171
A33: Debra | B33: 3056
A34: Manavbir | B34: 349
A35: Chris | B35: 486
A36: Elain | B36: 4608
A37: Michelle | B37: 2221
A38: Jason | B38: 4794
A39: Mansa | B39: 5796
A40: Shari | B40: 5940
A41: Kaur | B41: 706
A42: Manavbir | B42: 29
A43: Debra | B43: 1987
A44: Sarah | B44: 230
A45: Daniel | B45: 5881
A46: Manavbir | B46: 4440
A47: Thongtara | B47: 4728
A48: Carol | B48: 4989
A49: Janita | B49: 5685
A50: Carol | B50: 4958
A51: Thongtara | B51: 2673
A52: Daniel | B52: 3573
A53: Gianna | B53: 611
A54: Kaur | B54: 4575
A55: Mansa | B55: 4306
A56: Janita | B56: 5147
A57: Kaur | B57: 5282
A58: Yla-Katrina | B58: 1376
A59: Richard | B59: 387
A60: Christina | B60: 5651
A61: Carol | B61: 3760
A62: Chris | B62: 5428
A63: Chris | B63: 4170
A64: Gianna | B64: 1644
A65: Yla-Katrina | B65: 4393
A66: Jason | B66: 1131
A67: Debra | B67: 4232
A68: Carol | B68: 228
A69: Craig | B69: 5940
A70: Ewelina | B70: 3511
A71: Sarah | B71: 16
A72: Michelle | B72: 1574
A73: Thongtara | B73: 1797
A74: Michelle | B74: 3522
A75: Gianna | B75: 5732
A76: Thongtara | B76: 3210
A77: Janita | B77: 4893
A78: Michael | B78: 3498
A79: Jason | B79: 3161
A80: Denise | B80: 4979
A81: Sarah | B81: 5444
A82: Nelia | B82: 4439
A83: Mitchell | B83: 4434
A84: Denise | B84: 2934
A85: Ewelina | B85: 985
A86: Shari | B86: 4863
A87: Michelle | B87: 2687
A88: Jason | B88: 2406
A89: Daniel | B89: 1992
A90: Chris | B90: 3735
A91: Thongtara | B91: 1179
A92: Michelle | B92: 2130
A93: Manavbir | B93: 5706
A94: Debra | B94: 2375
A95: Carol | B95: 2177
A96: Ewelina | B96: 1452
A97: Shari | B97: 4137
A98: Kaur | B98: 557
A99: Mansa | B99: 4289
A100: Sarah | B100: 4441
A101: Mansa | B101: 3099
A102: Michael | B102: 4803
A103: Chris | B103: 3959
A104: Daniel | B104: 5466
A105: Chris | B105: 3283
A106: Daniel | B106: 4111
A107: Craig | B107: 4107
A108: Craig | B108: 425
A109: Ewelina | B109: 2945
A110: Daniel | B110: 3419
A111: Mansa | B111: 1158
A112: Nelia | B112: 1849
A113: Jason | B113: 4802
A114: Debra | B114: 1417
A115: Debra | B115: 5670
A116: Christina | B116: 1752
A117: Jason | B117: 5365
A118: Richard | B118: 4147
A119: Sarah | B119: 3144
A120: Elain | B120: 2874
A121: Mansa | B121: 2442
A122: Debra | B122: 3994
A123: Denise | B123: 5848
A124: Daniel | B124: 2647
A125: Richard | B125: 5188
A126: Mitchell | B126: 5296
A127: Kaur | B127: 5675
A128: Ewelina | B128: 962
A129: Richard | B129: 573
A130: Debra | B130: 2076
A131: Carol | B131: 1954
A132: Michelle | B132: 3177
A133: Debra | B133: 1703
A134: Michelle | B134: 3006
A135: Chris | B135: 5725
A136: Elain | B136: 2003
A137: Carol | B137: 5406
A138: Christina | B138: 1737
A139: Christina | B139: 4935
A140: Elain | B140: 2498
A141: Elain | B141: 5922
A142: Shari | B142: 1407
A143: Mitchell | B143: 1815
A144: Ewelina | B144: 3204
A145: Christina | B145: 4382
A146: Michelle | B146: 5696
A147: Carol | B147: 789
A148: Sarah | B148: 977
A149: Mansa | B149: 1923
A150: Denise | B150: 1061
A151: Manavbir | B151: 3652
A152: Gianna | B152: 918
A153: Yla-Katrina | B153: 4208
A154: Michelle | B154: 2542
A155: Christina | B155: 2080
A156: Jason | B156: 4710
A157: Jason | B157: 278
A158: Gianna | B158: 4639
A159: Denise | B159: 5074
A160: Mitchell | B160: 303
A161: Mansa | B161: 4217
A162: Thongtara | B162: 2854
A163: Chris | B163: 4016
A164: Craig | B164: 5173
A165: Elain | B165: 774
A166: Janita | B166: 3818
A167: Thongtara | B167: 3277
A168: Mitchell | B168: 3796
A169: Manavbir | B169: 3707
A170: Nelia | B170: 2863
A171: Janita | B171: 2029
A172: Denise | B172: 4228
A173: Christina | B173: 2219
A174: Richard | B174: 3485
A175: Janita | B175: 968
A176: Janita | B176: 1543
A177: Michael | B177: 5547
A178: Gianna | B178: 4917
A179: Janita | B179: 3005
A180: Nelia | B180: 4624
A181: Daniel | B181: 1034
A182: Mansa | B182: 559
A183: Nelia | B183: 2367
A184: Manavbir | B184: 5972
A185: Christina | B185: 4243
A186: Richard | B186: 490
A187: Kaur | B187: 5071
A188: Craig | B188: 3301
A189: Chris | B189: 2771
A190: Christina | B190: 3238
A191: Carol | B191: 951
A192: Mitchell | B192: 2780
A193: Sarah | B193: 71
A194: Carol | B194: 4424
A195: Manavbir | B195: 4034
A196: Thongtara | B196: 631
A197: Elain | B197: 4450
A198: Michelle | B198: 3140
A199: Gianna | B199: 1191
A200: Daniel | B200: 5906
A201: Daniel | B201: 5076
... 569 more rows

Sheet P(1an) (hidden)
A1: Calculate the commission in dollars
A3: SalesRep | B3: Sales | C3: Commision In Dollars | F3: Sales | G3: Com. Rate
A4: Denise | B4: 3681 | C4: =B4*VLOOKUP(B4,$F$4:$G$8,2) -> 73.62 | F4: 0 | G4: 0
A5: Thongtara | B5: 1190 | C5: =B5*VLOOKUP(B5,$F$4:$G$8,2) -> 23.8 | F5: 200 | G5: 0.01
A6: Chris | B6: 3136 | C6: 62.72 | F6: 500 | G6: 0.015
A7: Ewelina | B7: 1032 | C7: 20.64 | F7: 1000 | G7: 0.02
A8: Janita | B8: 258 | C8: 2.58 | F8: 5000 | G8: 0.05
A9: Elain | B9: 5500 | C9: 275
A10: Gianna | B10: 4596 | C10: 91.92
A11: Richard | B11: 2227 | C11: 44.54
A12: Elain | B12: 966 | C12: 14.49
A13: Michael | B13: 2903 | C13: 58.06
A14: Ewelina | B14: 4646 | C14: 92.92
A15: Michelle | B15: 4692 | C15: 93.84
A16: Jason | B16: 2752 | C16: 55.04
A17: Craig | B17: 611 | C17: 9.165
A18: Sarah | B18: 457 | C18: 4.57
A19: Mansa | B19: 155 | C19: 0
A20: Michelle | B20: 990 | C20: 14.85
A21: Shari | B21: 1079 | C21: 21.58
A22: Richard | B22: 5275 | C22: 263.75
A23: Christina | B23: 4172 | C23: 83.44
A24: Denise | B24: 358 | C24: 3.58
A25: Richard | B25: 1199 | C25: 23.98
A26: Thongtara | B26: 3946 | C26: 78.92
A27: Michelle | B27: 4550 | C27: 91
A28: Michelle | B28: 4470 | C28: 89.4
A29: Shari | B29: 4333 | C29: 86.66
A30: Carol | B30: 1208 | C30: 24.16
A31: Kaur | B31: 4626 | C31: 92.52
A32: Mitchell | B32: 4171 | C32: 83.42
A33: Debra | B33: 3056 | C33: 61.12
A34: Manavbir | B34: 349 | C34: 3.49
A35: Chris | B35: 486 | C35: 4.86
A36: Elain | B36: 4608 | C36: 92.16
A37: Michelle | B37: 2221 | C37: 44.42
A38: Jason | B38: 4794 | C38: 95.88
A39: Mansa | B39: 5796 | C39: 289.8
A40: Shari | B40: 5940 | C40: 297
A41: Kaur | B41: 706 | C41: 10.59
A42: Manavbir | B42: 29 | C42: 0
A43: Debra | B43: 1987 | C43: 39.74
A44: Sarah | B44: 230 | C44: 2.3
A45: Daniel | B45: 5881 | C45: 294.05
A46: Manavbir | B46: 4440 | C46: 88.8
A47: Thongtara | B47: 4728 | C47: 94.56
A48: Carol | B48: 4989 | C48: 99.78
A49: Janita | B49: 5685 | C49: 284.25
A50: Carol | B50: 4958 | C50: 99.16
A51: Thongtara | B51: 2673 | C51: 53.46
A52: Daniel | B52: 3573 | C52: 71.46
A53: Gianna | B53: 611 | C53: 9.165
A54: Kaur | B54: 4575 | C54: 91.5
A55: Mansa | B55: 4306 | C55: 86.12
A56: Janita | B56: 5147 | C56: 257.35
A57: Kaur | B57: 5282 | C57: 264.1
A58: Yla-Katrina | B58: 1376 | C58: 27.52
A59: Richard | B59: 387 | C59: 3.87
A60: Christina | B60: 5651 | C60: 282.55
A61: Carol | B61: 3760 | C61: 75.2
A62: Chris | B62: 5428 | C62: 271.4
A63: Chris | B63: 4170 | C63: 83.4
A64: Gianna | B64: 1644 | C64: 32.88
A65: Yla-Katrina | B65: 4393 | C65: 87.86
A66: Jason | B66: 1131 | C66: 22.62
A67: Debra | B67: 4232 | C67: 84.64
A68: Carol | B68: 228 | C68: 2.28
A69: Craig | B69: 5940 | C69: =B69*VLOOKUP(B69,$F$4:$G$8,2) -> 297
A70: Ewelina | B70: 3511 | C70: 70.22
A71: Sarah | B71: 16 | C71: 0
A72: Michelle | B72: 1574 | C72: 31.48
A73: Thongtara | B73: 1797 | C73: 35.94
A74: Michelle | B74: 3522 | C74: 70.44
A75: Gianna | B75: 5732 | C75: 286.6
A76: Thongtara | B76: 3210 | C76: 64.2
A77: Janita | B77: 4893 | C77: 97.86
A78: Michael | B78: 3498 | C78: 69.96
A79: Jason | B79: 3161 | C79: 63.22
A80: Denise | B80: 4979 | C80: 99.58
A81: Sarah | B81: 5444 | C81: 272.2
A82: Nelia | B82: 4439 | C82: 88.78
A83: Mitchell | B83: 4434 | C83: 88.68
A84: Denise | B84: 2934 | C84: 58.68
A85: Ewelina | B85: 985 | C85: 14.775
A86: Shari | B86: 4863 | C86: 97.26
A87: Michelle | B87: 2687 | C87: 53.74
A88: Jason | B88: 2406 | C88: 48.12
A89: Daniel | B89: 1992 | C89: 39.84
A90: Chris | B90: 3735 | C90: 74.7
A91: Thongtara | B91: 1179 | C91: 23.58
A92: Michelle | B92: 2130 | C92: 42.6
A93: Manavbir | B93: 5706 | C93: 285.3
A94: Debra | B94: 2375 | C94: 47.5
A95: Carol | B95: 2177 | C95: 43.54
A96: Ewelina | B96: 1452 | C96: 29.04
A97: Shari | B97: 4137 | C97: 82.74
A98: Kaur | B98: 557 | C98: 8.355
A99: Mansa | B99: 4289 | C99: 85.78
A100: Sarah | B100: 4441 | C100: 88.82
A101: Mansa | B101: 3099 | C101: 61.98
A102: Michael | B102: 4803 | C102: 96.06
A103: Chris | B103: 3959 | C103: 79.18
A104: Daniel | B104: 5466 | C104: 273.3
A105: Chris | B105: 3283 | C105: 65.66
A106: Daniel | B106: 4111 | C106: 82.22
A107: Craig | B107: 4107 | C107: 82.14
A108: Craig | B108: 425 | C108: 4.25
A109: Ewelina | B109: 2945 | C109: 58.9
A110: Daniel | B110: 3419 | C110: 68.38
A111: Mansa | B111: 1158 | C111: 23.16
A112: Nelia | B112: 1849 | C112: 36.98
A113: Jason | B113: 4802 | C113: 96.04
A114: Debra | B114: 1417 | C114: 28.34
A115: Debra | B115: 5670 | C115: 283.5
A116: Christina | B116: 1752 | C116: 35.04
A117: Jason | B117: 5365 | C117: 268.25
A118: Richard | B118: 4147 | C118: 82.94
A119: Sarah | B119: 3144 | C119: 62.88
A120: Elain | B120: 2874 | C120: 57.48
A121: Mansa | B121: 2442 | C121: 48.84
A122: Debra | B122: 3994 | C122: 79.88
A123: Denise | B123: 5848 | C123: 292.4
A124: Daniel | B124: 2647 | C124: 52.94
A125: Richard | B125: 5188 | C125: 259.4
A126: Mitchell | B126: 5296 | C126: 264.8
A127: Kaur | B127: 5675 | C127: 283.75
A128: Ewelina | B128: 962 | C128: 14.43
A129: Richard | B129: 573 | C129: 8.595
A130: Debra | B130: 2076 | C130: 41.52
A131: Carol | B131: 1954 | C131: 39.08
A132: Michelle | B132: 3177 | C132: 63.54
A133: Debra | B133: 1703 | C133: =B133*VLOOKUP(B133,$F$4:$G$8,2) -> 34.06
A134: Michelle | B134: 3006 | C134: 60.12
A135: Chris | B135: 5725 | C135: 286.25
A136: Elain | B136: 2003 | C136: 40.06
A137: Carol | B137: 5406 | C137: 270.3
A138: Christina | B138: 1737 | C138: 34.74
A139: Christina | B139: 4935 | C139: 98.7
A140: Elain | B140: 2498 | C140: 49.96
A141: Elain | B141: 5922 | C141: 296.1
A142: Shari | B142: 1407 | C142: 28.14
A143: Mitchell | B143: 1815 | C143: 36.3
A144: Ewelina | B144: 3204 | C144: 64.08
A145: Christina | B145: 4382 | C145: 87.64
A146: Michelle | B146: 5696 | C146: 284.8
A147: Carol | B147: 789 | C147: 11.835
A148: Sarah | B148: 977 | C148: 14.655
A149: Mansa | B149: 1923 | C149: 38.46
A150: Denise | B150: 1061 | C150: 21.22
A151: Manavbir | B151: 3652 | C151: 73.04
A152: Gianna | B152: 918 | C152: 13.77
A153: Yla-Katrina | B153: 4208 | C153: 84.16
A154: Michelle | B154: 2542 | C154: 50.84
A155: Christina | B155: 2080 | C155: 41.6
A156: Jason | B156: 4710 | C156: 94.2
A157: Jason | B157: 278 | C157: 2.78
A158: Gianna | B158: 4639 | C158: 92.78
A159: Denise | B159: 5074 | C159: 253.7
A160: Mitchell | B160: 303 | C160: 3.03
A161: Mansa | B161: 4217 | C161: 84.34
A162: Thongtara | B162: 2854 | C162: 57.08
A163: Chris | B163: 4016 | C163: 80.32
A164: Craig | B164: 5173 | C164: 258.65
A165: Elain | B165: 774 | C165: 11.61
A166: Janita | B166: 3818 | C166: 76.36
A167: Thongtara | B167: 3277 | C167: 65.54
A168: Mitchell | B168: 3796 | C168: 75.92
A169: Manavbir | B169: 3707 | C169: 74.14
A170: Nelia | B170: 2863 | C170: 57.26
A171: Janita | B171: 2029 | C171: 40.58
A172: Denise | B172: 4228 | C172: 84.56
A173: Christina | B173: 2219 | C173: 44.38
A174: Richard | B174: 3485 | C174: 69.7
A175: Janita | B175: 968 | C175: 14.52
A176: Janita | B176: 1543 | C176: 30.86
A177: Michael | B177: 5547 | C177: 277.35
A178: Gianna | B178: 4917 | C178: 98.34
A179: Janita | B179: 3005 | C179: 60.1
A180: Nelia | B180: 4624 | C180: 92.48
A181: Daniel | B181: 1034 | C181: 20.68
A182: Mansa | B182: 559 | C182: 8.385
A183: Nelia | B183: 2367 | C183: 47.34
A184: Manavbir | B184: 5972 | C184: 298.6
A185: Christina | B185: 4243 | C185: 84.86
A186: Richard | B186: 490 | C186: 4.9
A187: Kaur | B187: 5071 | C187: 253.55
A188: Craig | B188: 3301 | C188: 66.02
A189: Chris | B189: 2771 | C189: 55.42
A190: Christina | B190: 3238 | C190: 64.76
A191: Carol | B191: 951 | C191: 14.265
A192: Mitchell | B192: 2780 | C192: 55.6
A193: Sarah | B193: 71 | C193: 0
A194: Carol | B194: 4424 | C194: 88.48
A195: Manavbir | B195: 4034 | C195: 80.68
A196: Thongtara | B196: 631 | C196: 9.465
A197: Elain | B197: 4450 | C197: =B197*VLOOKUP(B197,$F$4:$G$8,2) -> 89
A198: Michelle | B198: 3140 | C198: 62.8
A199: Gianna | B199: 1191 | C199: 23.82
A200: Daniel | B200: 5906 | C200: 295.3
A201: Daniel | B201: 5076 | C201: 253.8
... 569 more rows

Sheet P(2)
A1: ="In the range "&ADDRESS(ROW(G7),COLUMN(G7),4)&":"&ADDRESS(ROW(I11),COLUMN(I11),4)&" use the SUMIFS function with three criteria to add the sales for each product in each month." -> In the range G7:I11 use the SUMIFS function with three criteria to add the sales for each product in each month.
J3: Start Day | K3: 2010-04-01
A4: Date | B4: SalesRep | C4: Sales | D4: Product
A5: 2010-05-21 | B5: Denise | C5: 111 | D5: Bellen | G5: =K3 -> 2010-04-01 | H5: =G6 -> 2010-05-01 | I5: =H6 -> 2010-06-01 | J5: >= to this date
A6: 2010-04-30 | B6: Thongtara | C6: 167 | D6: Bellen | F6: Product | G6: =EDATE(G5,1) -> 2010-05-01 | H6: =EDATE(H5,1) -> 2010-06-01 | I6: 2010-07-01 | J6: < this date
A7: 2010-04-19 | B7: Chris | C7: 191 | D7: Sunshine | F7: Bellen
A8: 2010-06-17 | B8: Ewelina | C8: 110 | D8: Carlota | F8: Sunshine
A9: 2010-07-22 | B9: Janita | C9: 146 | D9: Carlota | F9: Carlota
A10: 2010-05-16 | B10: Elain | C10: 177 | D10: Sunshine | F10: Sunset
A11: 2010-06-05 | B11: Gianna | C11: 137 | D11: Carlota | F11: Majestic Beaut
A12: 2010-05-13 | B12: Richard | C12: 116 | D12: Bellen
A13: 2010-05-14 | B13: Elain | C13: 166 | D13: Sunshine
A14: 2010-06-12 | B14: Michael | C14: 193 | D14: Bellen
A15: 2010-05-22 | B15: Ewelina | C15: 105 | D15: Sunset
A16: 2010-07-19 | B16: Michelle | C16: 189 | D16: Carlota
A17: 2010-05-12 | B17: Jason | C17: 122 | D17: Majestic Beaut
A18: 2010-06-05 | B18: Craig | C18: 196 | D18: Sunshine
A19: 2010-05-23 | B19: Sarah | C19: 161 | D19: Sunshine
A20: 2010-05-29 | B20: Mansa | C20: 197 | D20: Majestic Beaut
A21: 2010-07-21 | B21: Michelle | C21: 113 | D21: Sunset
A22: 2010-06-30 | B22: Shari | C22: 111 | D22: Bellen
A23: 2010-04-19 | B23: Richard | C23: 164 | D23: Sunshine
A24: 2010-06-19 | B24: Christina | C24: 167 | D24: Majestic Beaut
A25: 2010-07-01 | B25: Denise | C25: 129 | D25: Bellen
A26: 2010-04-29 | B26: Richard | C26: 122 | D26: Sunshine
A27: 2010-03-27 | B27: Thongtara | C27: 132 | D27: Sunshine
A28: 2010-04-13 | B28: Michelle | C28: 178 | D28: Carlota
A29: 2010-07-18 | B29: Michelle | C29: 199 | D29: Bellen
A30: 2010-05-27 | B30: Shari | C30: 181 | D30: Majestic Beaut
A31: 2010-06-15 | B31: Carol | C31: 110 | D31: Carlota
A32: 2010-04-08 | B32: Kaur | C32: 104 | D32: Sunset
A33: 2010-06-23 | B33: Mitchell | C33: 110 | D33: Sunshine
A34: 2010-06-21 | B34: Debra | C34: 185 | D34: Carlota
A35: 2010-05-01 | B35: Manavbir | C35: 183 | D35: Sunset
A36: 2010-07-07 | B36: Chris | C36: 143 | D36: Sunset
A37: 2010-07-12 | B37: Elain | C37: 120 | D37: Carlota
A38: 2010-06-22 | B38: Michelle | C38: 147 | D38: Sunshine
A39: 2010-05-15 | B39: Jason | C39: 117 | D39: Sunshine
A40: 2010-03-31 | B40: Mansa | C40: 128 | D40: Bellen
A41: 2010-04-16 | B41: Shari | C41: 110 | D41: Sunshine
A42: 2010-05-23 | B42: Kaur | C42: 158 | D42: Carlota
A43: 2010-04-09 | B43: Manavbir | C43: 133 | D43: Sunset
A44: 2010-05-17 | B44: Debra | C44: 190 | D44: Majestic Beaut
A45: 2010-07-13 | B45: Sarah | C45: 138 | D45: Sunshine
A46: 2010-04-01 | B46: Daniel | C46: 143 | D46: Sunset
A47: 2010-04-12 | B47: Manavbir | C47: 167 | D47: Carlota
A48: 2010-04-02 | B48: Thongtara | C48: 135 | D48: Carlota
A49: 2010-05-22 | B49: Carol | C49: 125 | D49: Sunshine
A50: 2010-07-08 | B50: Janita | C50: 107 | D50: Carlota
A51: 2010-06-10 | B51: Carol | C51: 162 | D51: Bellen
A52: 2010-07-13 | B52: Thongtara | C52: 192 | D52: Majestic Beaut
A53: 2010-06-05 | B53: Daniel | C53: 152 | D53: Carlota
A54: 2010-04-28 | B54: Gianna | C54: 155 | D54: Majestic Beaut
A55: 2010-07-08 | B55: Kaur | C55: 155 | D55: Sunshine
A56: 2010-05-06 | B56: Mansa | C56: 145 | D56: Sunshine
A57: 2010-07-10 | B57: Janita | C57: 149 | D57: Carlota
A58: 2010-06-24 | B58: Kaur | C58: 180 | D58: Sunset
A59: 2010-05-07 | B59: Yla-Katrina | C59: 190 | D59: Bellen
A60: 2010-07-01 | B60: Richard | C60: 127 | D60: Sunset
A61: 2010-03-30 | B61: Christina | C61: 114 | D61: Carlota
A62: 2010-04-18 | B62: Carol | C62: 191 | D62: Majestic Beaut
A63: 2010-07-02 | B63: Chris | C63: 197 | D63: Sunshine
A64: 2010-05-09 | B64: Chris | C64: 186 | D64: Bellen
A65: 2010-06-10 | B65: Gianna | C65: 174 | D65: Carlota
A66: 2010-05-29 | B66: Yla-Katrina | C66: 114 | D66: Carlota
A67: 2010-07-05 | B67: Jason | C67: 121 | D67: Bellen
A68: 2010-03-28 | B68: Debra | C68: 134 | D68: Sunshine
A69: 2010-06-15 | B69: Carol | C69: 174 | D69: Carlota
A70: 2010-05-06 | B70: Craig | C70: 178 | D70: Majestic Beaut
A71: 2010-06-01 | B71: Ewelina | C71: 132 | D71: Sunshine
A72: 2010-06-02 | B72: Sarah | C72: 148 | D72: Carlota
A73: 2010-04-05 | B73: Michelle | C73: 120 | D73: Sunset
A74: 2010-06-01 | B74: Thongtara | C74: 199 | D74: Sunshine
A75: 2010-03-31 | B75: Michelle | C75: 109 | D75: Majestic Beaut
A76: 2010-06-27 | B76: Gianna | C76: 138 | D76: Carlota
A77: 2010-05-27 | B77: Thongtara | C77: 153 | D77: Bellen
A78: 2010-06-19 | B78: Janita | C78: 122 | D78: Bellen
A79: 2010-07-21 | B79: Michael | C79: 154 | D79: Bellen
A80: 2010-06-19 | B80: Jason | C80: 174 | D80: Sunset
A81: 2010-07-14 | B81: Denise | C81: 181 | D81: Bellen
A82: 2010-06-25 | B82: Sarah | C82: 113 | D82: Bellen
A83: 2010-04-01 | B83: Nelia | C83: 177 | D83: Sunset
A84: 2010-07-12 | B84: Mitchell | C84: 138 | D84: Majestic Beaut
A85: 2010-05-21 | B85: Denise | C85: 175 | D85: Bellen
A86: 2010-04-16 | B86: Ewelina | C86: 149 | D86: Majestic Beaut
A87: 2010-05-11 | B87: Shari | C87: 140 | D87: Majestic Beaut
A88: 2010-05-03 | B88: Michelle | C88: 152 | D88: Carlota
A89: 2010-04-20 | B89: Jason | C89: 104 | D89: Bellen
A90: 2010-06-07 | B90: Daniel | C90: 116 | D90: Majestic Beaut
A91: 2010-05-06 | B91: Chris | C91: 131 | D91: Carlota
A92: 2010-04-07 | B92: Thongtara | C92: 135 | D92: Sunshine
A93: 2010-06-04 | B93: Michelle | C93: 164 | D93: Sunset
A94: 2010-03-27 | B94: Manavbir | C94: 178 | D94: Sunset
A95: 2010-04-08 | B95: Debra | C95: 139 | D95: Sunshine
A96: 2010-05-04 | B96: Carol | C96: 160 | D96: Carlota
A97: 2010-07-07 | B97: Ewelina | C97: 162 | D97: Bellen
A98: 2010-06-19 | B98: Shari | C98: 103 | D98: Sunshine
A99: 2010-05-09 | B99: Kaur | C99: 200 | D99: Carlota
A100: 2010-04-21 | B100: Mansa | C100: 132 | D100: Sunset
A101: 2010-04-12 | B101: Sarah | C101: 133 | D101: Sunshine
A102: 2010-06-23 | B102: Mansa | C102: 187 | D102: Majestic Beaut
A103: 2010-07-22 | B103: Michael | C103: 173 | D103: Majestic Beaut
A104: 2010-06-07 | B104: Chris | C104: 112 | D104: Sunshine
A105: 2010-04-22 | B105: Daniel | C105: 132 | D105: Bellen
A106: 2010-04-27 | B106: Chris | C106: 112 | D106: Sunset
A107: 2010-04-23 | B107: Daniel | C107: 131 | D107: Carlota
A108: 2010-05-25 | B108: Craig | C108: 175 | D108: Sunshine
A109: 2010-07-19 | B109: Craig | C109: 158 | D109: Sunshine
A110: 2010-04-26 | B110: Ewelina | C110: 148 | D110: Bellen
A111: 2010-06-09 | B111: Daniel | C111: 187 | D111: Sunset
A112: 2010-07-07 | B112: Mansa | C112: 168 | D112: Majestic Beaut
A113: 2010-04-25 | B113: Nelia | C113: 116 | D113: Majestic Beaut
A114: 2010-03-26 | B114: Jason | C114: 122 | D114: Carlota
A115: 2010-05-21 | B115: Debra | C115: 160 | D115: Sunshine
A116: 2010-05-13 | B116: Debra | C116: 192 | D116: Carlota
A117: 2010-05-19 | B117: Christina | C117: 154 | D117: Sunset
A118: 2010-04-06 | B118: Jason | C118: 145 | D118: Sunshine
A119: 2010-05-03 | B119: Richard | C119: 178 | D119: Sunshine
A120: 2010-05-04 | B120: Sarah | C120: 112 | D120: Sunset
A121: 2010-07-04 | B121: Elain | C121: 115 | D121: Carlota
A122: 2010-05-25 | B122: Mansa | C122: 146 | D122: Carlota
A123: 2010-06-15 | B123: Debra | C123: 109 | D123: Majestic Beaut
A124: 2010-07-21 | B124: Denise | C124: 172 | D124: Carlota
A125: 2010-05-22 | B125: Daniel | C125: 146 | D125: Sunshine
A126: 2010-06-30 | B126: Richard | C126: 144 | D126: Bellen
A127: 2010-06-23 | B127: Mitchell | C127: 146 | D127: Carlota
A128: 2010-04-28 | B128: Kaur | C128: 105 | D128: Sunshine
A129: 2010-06-25 | B129: Ewelina | C129: 134 | D129: Carlota
A130: 2010-07-11 | B130: Richard | C130: 118 | D130: Carlota
A131: 2010-07-10 | B131: Debra | C131: 132 | D131: Bellen
A132: 2010-05-27 | B132: Carol | C132: 117 | D132: Sunset
A133: 2010-04-03 | B133: Michelle | C133: 194 | D133: Carlota
A134: 2010-04-27 | B134: Debra | C134: 122 | D134: Sunshine
A135: 2010-06-29 | B135: Michelle | C135: 134 | D135: Sunset
A136: 2010-07-11 | B136: Chris | C136: 134 | D136: Sunshine
A137: 2010-03-30 | B137: Elain | C137: 125 | D137: Sunset
A138: 2010-04-05 | B138: Carol | C138: 115 | D138: Majestic Beaut
A139: 2010-04-04 | B139: Christina | C139: 105 | D139: Sunset
A140: 2010-06-24 | B140: Christina | C140: 179 | D140: Bellen
A141: 2010-06-22 | B141: Elain | C141: 114 | D141: Sunset
A142: 2010-06-06 | B142: Elain | C142: 176 | D142: Carlota
A143: 2010-04-25 | B143: Shari | C143: 194 | D143: Sunset
A144: 2010-05-18 | B144: Mitchell | C144: 170 | D144: Majestic Beaut
A145: 2010-07-14 | B145: Ewelina | C145: 144 | D145: Carlota
A146: 2010-05-06 | B146: Christina | C146: 175 | D146: Carlota
A147: 2010-07-22 | B147: Michelle | C147: 185 | D147: Sunshine
A148: 2010-07-02 | B148: Carol | C148: 133 | D148: Majestic Beaut
A149: 2010-05-21 | B149: Sarah | C149: 131 | D149: Sunset
A150: 2010-06-15 | B150: Mansa | C150: 163 | D150: Sunshine
A151: 2010-03-26 | B151: Denise | C151: 120 | D151: Sunshine
A152: 2010-05-04 | B152: Manavbir | C152: 136 | D152: Majestic Beaut
A153: 2010-03-28 | B153: Gianna | C153: 195 | D153: Sunset
A154: 2010-04-21 | B154: Yla-Katrina | C154: 157 | D154: Sunset
A155: 2010-05-27 | B155: Michelle | C155: 187 | D155: Majestic Beaut
A156: 2010-05-15 | B156: Christina | C156: 185 | D156: Carlota
A157: 2010-07-10 | B157: Jason | C157: 154 | D157: Sunset
A158: 2010-06-13 | B158: Jason | C158: 187 | D158: Sunshine
A159: 2010-07-14 | B159: Gianna | C159: 142 | D159: Sunshine
A160: 2010-07-19 | B160: Denise | C160: 132 | D160: Majestic Beaut
A161: 2010-07-11 | B161: Mitchell | C161: 127 | D161: Sunset
A162: 2010-05-27 | B162: Mansa | C162: 184 | D162: Majestic Beaut
A163: 2010-06-23 | B163: Thongtara | C163: 164 | D163: Bellen
A164: 2010-04-28 | B164: Chris | C164: 157 | D164: Sunset
A165: 2010-07-05 | B165: Craig | C165: 186 | D165: Majestic Beaut
A166: 2010-05-23 | B166: Elain | C166: 135 | D166: Carlota
A167: 2010-06-25 | B167: Janita | C167: 194 | D167: Carlota
A168: 2010-04-05 | B168: Thongtara | C168: 177 | D168: Sunset
A169: 2010-05-05 | B169: Mitchell | C169: 143 | D169: Carlota
A170: 2010-05-18 | B170: Manavbir | C170: 152 | D170: Sunset
A171: 2010-06-03 | B171: Nelia | C171: 101 | D171: Sunset
A172: 2010-05-05 | B172: Janita | C172: 110 | D172: Majestic Beaut
A173: 2010-06-15 | B173: Denise | C173: 124 | D173: Carlota
A174: 2010-05-08 | B174: Christina | C174: 102 | D174: Sunshine
A175: 2010-07-16 | B175: Richard | C175: 139 | D175: Sunset
A176: 2010-05-06 | B176: Janita | C176: 152 | D176: Bellen
A177: 2010-05-17 | B177: Janita | C177: 168 | D177: Majestic Beaut
A178: 2010-04-01 | B178: Michael | C178: 151 | D178: Majestic Beaut
A179: 2010-05-06 | B179: Gianna | C179: 137 | D179: Sunshine
A180: 2010-07-13 | B180: Janita | C180: 104 | D180: Carlota
A181: 2010-04-09 | B181: Nelia | C181: 139 | D181: Carlota
A182: 2010-07-04 | B182: Daniel | C182: 147 | D182: Sunshine
A183: 2010-07-09 | B183: Mansa | C183: 190 | D183: Majestic Beaut
A184: 2010-07-19 | B184: Nelia | C184: 159 | D184: Carlota
A185: 2010-03-28 | B185: Manavbir | C185: 112 | D185: Carlota
A186: 2010-05-08 | B186: Christina | C186: 182 | D186: Majestic Beaut
A187: 2010-05-16 | B187: Richard | C187: 121 | D187: Sunset
A188: 2010-05-25 | B188: Kaur | C188: 181 | D188: Majestic Beaut
A189: 2010-06-03 | B189: Craig | C189: 104 | D189: Bellen
A190: 2010-06-01 | B190: Chris | C190: 194 | D190: Sunset
A191: 2010-03-29 | B191: Christina | C191: 178 | D191: Sunshine
A192: 2010-06-27 | B192: Carol | C192: 142 | D192: Sunshine
A193: 2010-04-09 | B193: Mitchell | C193: 191 | D193: Bellen
A194: 2010-06-26 | B194: Sarah | C194: 120 | D194: Bellen
A195: 2010-05-10 | B195: Carol | C195: 155 | D195: Sunshine
A196: 2010-05-03 | B196: Manavbir | C196: 199 | D196: Sunshine
A197: 2010-05-12 | B197: Thongtara | C197: 106 | D197: Sunshine
A198: 2010-04-28 | B198: Elain | C198: 149 | D198: Majestic Beaut
A199: 2010-06-09 | B199: Michelle | C199: 158 | D199: Bellen
A200: 2010-04-01 | B200: Gianna | C200: 144 | D200: Bellen
A201: 2010-05-13 | B201: Daniel | C201: 143 | D201: Bellen
... 570 more rows

Sheet P(2an) (hidden)
A1: ="In the range "&ADDRESS(ROW(G7),COLUMN(G7),4)&":"&ADDRESS(ROW(I11),COLUMN(I11),4)&" use the SUMIFS function with three criteria to add the sales for each product in each month." -> In the range G7:I11 use the SUMIFS function with three criteria to add the sales for each product in each month.
J3: Start Day | K3: 2010-04-01
A4: Date | B4: SalesRep | C4: Sales | D4: Product
A5: 2010-05-21 | B5: Denise | C5: 111 | D5: Bellen | G5: =K3 -> 2010-04-01 | H5: =G6 -> 2010-05-01 | I5: =H6 -> 2010-06-01 | J5: >= to this date
A6: 2010-04-30 | B6: Thongtara | C6: 167 | D6: Bellen | F6: Product | G6: =EDATE(G5,1) -> 2010-05-01 | H6: =EDATE(H5,1) -> 2010-06-01 | I6: 2010-07-01 | J6: < this date
A7: 2010-04-19 | B7: Chris | C7: 191 | D7: Sunshine | F7: Bellen | G7: =SUMIFS($C$5:$C$771,$D$5:$D$771,$F7,$A$5:$A$771,">="&G$5,$A$5:$A$771,"<"&G$6) -> 5624 | H7: 5443 | I7: 4767
A8: 2010-06-17 | B8: Ewelina | C8: 110 | D8: Carlota | F8: Carlota | G8: 5954 | H8: 6033 | I8: 7257
A9: 2010-07-22 | B9: Janita | C9: 146 | D9: Carlota | F9: Majestic Beaut | G9: 5057 | H9: 6547 | I9: 3773
A10: 2010-05-16 | B10: Elain | C10: 177 | D10: Sunshine | F10: Sunset | G10: 5032 | H10: 4590 | I10: 5940
A11: 2010-06-05 | B11: Gianna | C11: 137 | D11: Carlota | F11: Sunshine | G11: 8054 | H11: 6256 | I11: =SUMIFS($C$5:$C$771,$D$5:$D$771,$F11,$A$5:$A$771,">="&I$5,$A$5:$A$771,"<"&I$6) -> 5791
A12: 2010-05-13 | B12: Richard | C12: 116 | D12: Bellen
A13: 2010-05-14 | B13: Elain | C13: 166 | D13: Sunshine
A14: 2010-06-12 | B14: Michael | C14: 193 | D14: Bellen
A15: 2010-05-22 | B15: Ewelina | C15: 105 | D15: Sunset
A16: 2010-07-19 | B16: Michelle | C16: 189 | D16: Carlota
A17: 2010-05-12 | B17: Jason | C17: 122 | D17: Majestic Beaut | F17: Sum of Sales | G17: Column Labels
A18: 2010-06-05 | B18: Craig | C18: 196 | D18: Sunshine | F18: Row Labels | G18: Mar | H18: Apr | I18: May | J18: Jun | K18: Jul | L18: Grand Total
A19: 2010-05-23 | B19: Sarah | C19: 161 | D19: Sunshine | F19: Bellen | G19: 1027 | H19: 5624 | I19: 5443 | J19: 4767 | K19: 3594 | L19: 20455
A20: 2010-05-29 | B20: Mansa | C20: 197 | D20: Majestic Beaut | F20: Carlota | G20: 886 | H20: 5954 | I20: 6033 | J20: 7257 | K20: 5824 | L20: 25954
A21: 2010-07-21 | B21: Michelle | C21: 113 | D21: Sunset | F21: Majestic Beaut | G21: 1877 | H21: 5057 | I21: 6547 | J21: 3773 | K21: 3408 | L21: 20662
A22: 2010-06-30 | B22: Shari | C22: 111 | D22: Bellen | F22: Sunset | G22: 1336 | H22: 5032 | I22: 4590 | J22: 5940 | K22: 5319 | L22: 22217
A23: 2010-04-19 | B23: Richard | C23: 164 | D23: Sunshine | F23: Sunshine | G23: 960 | H23: 8054 | I23: 6256 | J23: 5791 | K23: 4266 | L23: 25327
A24: 2010-06-19 | B24: Christina | C24: 167 | D24: Majestic Beaut | F24: Grand Total | G24: 6086 | H24: 29721 | I24: 28869 | J24: 27528 | K24: 22411 | L24: 114615
A25: 2010-07-01 | B25: Denise | C25: 129 | D25: Bellen
A26: 2010-04-29 | B26: Richard | C26: 122 | D26: Sunshine
A27: 2010-03-27 | B27: Thongtara | C27: 132 | D27: Sunshine
A28: 2010-04-13 | B28: Michelle | C28: 178 | D28: Carlota
A29: 2010-07-18 | B29: Michelle | C29: 199 | D29: Bellen
A30: 2010-05-27 | B30: Shari | C30: 181 | D30: Majestic Beaut
A31: 2010-06-15 | B31: Carol | C31: 110 | D31: Carlota
A32: 2010-04-08 | B32: Kaur | C32: 104 | D32: Sunset
A33: 2010-06-23 | B33: Mitchell | C33: 110 | D33: Sunshine
A34: 2010-06-21 | B34: Debra | C34: 185 | D34: Carlota
A35: 2010-05-01 | B35: Manavbir | C35: 183 | D35: Sunset
A36: 2010-07-07 | B36: Chris | C36: 143 | D36: Sunset
A37: 2010-07-12 | B37: Elain | C37: 120 | D37: Carlota
A38: 2010-06-22 | B38: Michelle | C38: 147 | D38: Sunshine
A39: 2010-05-15 | B39: Jason | C39: 117 | D39: Sunshine
A40: 2010-03-31 | B40: Mansa | C40: 128 | D40: Bellen
A41: 2010-04-16 | B41: Shari | C41: 110 | D41: Sunshine
A42: 2010-05-23 | B42: Kaur | C42: 158 | D42: Carlota
A43: 2010-04-09 | B43: Manavbir | C43: 133 | D43: Sunset
A44: 2010-05-17 | B44: Debra | C44: 190 | D44: Majestic Beaut
A45: 2010-07-13 | B45: Sarah | C45: 138 | D45: Sunshine
A46: 2010-04-01 | B46: Daniel | C46: 143 | D46: Sunset
A47: 2010-04-12 | B47: Manavbir | C47: 167 | D47: Carlota
A48: 2010-04-02 | B48: Thongtara | C48: 135 | D48: Carlota
A49: 2010-05-22 | B49: Carol | C49: 125 | D49: Sunshine
A50: 2010-07-08 | B50: Janita | C50: 107 | D50: Carlota
A51: 2010-06-10 | B51: Carol | C51: 162 | D51: Bellen
A52: 2010-07-13 | B52: Thongtara | C52: 192 | D52: Majestic Beaut
A53: 2010-06-05 | B53: Daniel | C53: 152 | D53: Carlota
A54: 2010-04-28 | B54: Gianna | C54: 155 | D54: Majestic Beaut
A55: 2010-07-08 | B55: Kaur | C55: 155 | D55: Sunshine
A56: 2010-05-06 | B56: Mansa | C56: 145 | D56: Sunshine
A57: 2010-07-10 | B57: Janita | C57: 149 | D57: Carlota
A58: 2010-06-24 | B58: Kaur | C58: 180 | D58: Sunset
A59: 2010-05-07 | B59: Yla-Katrina | C59: 190 | D59: Bellen
A60: 2010-07-01 | B60: Richard | C60: 127 | D60: Sunset
A61: 2010-03-30 | B61: Christina | C61: 114 | D61: Carlota
A62: 2010-04-18 | B62: Carol | C62: 191 | D62: Majestic Beaut
A63: 2010-07-02 | B63: Chris | C63: 197 | D63: Sunshine
A64: 2010-05-09 | B64: Chris | C64: 186 | D64: Bellen
A65: 2010-06-10 | B65: Gianna | C65: 174 | D65: Carlota
A66: 2010-05-29 | B66: Yla-Katrina | C66: 114 | D66: Carlota
A67: 2010-07-05 | B67: Jason | C67: 121 | D67: Bellen
A68: 2010-03-28 | B68: Debra | C68: 134 | D68: Sunshine
A69: 2010-06-15 | B69: Carol | C69: 174 | D69: Carlota
A70: 2010-05-06 | B70: Craig | C70: 178 | D70: Majestic Beaut
A71: 2010-06-01 | B71: Ewelina | C71: 132 | D71: Sunshine
A72: 2010-06-02 | B72: Sarah | C72: 148 | D72: Carlota
A73: 2010-04-05 | B73: Michelle | C73: 120 | D73: Sunset
A74: 2010-06-01 | B74: Thongtara | C74: 199 | D74: Sunshine
A75: 2010-03-31 | B75: Michelle | C75: 109 | D75: Majestic Beaut
A76: 2010-06-27 | B76: Gianna | C76: 138 | D76: Carlota
A77: 2010-05-27 | B77: Thongtara | C77: 153 | D77: Bellen
A78: 2010-06-19 | B78: Janita | C78: 122 | D78: Bellen
A79: 2010-07-21 | B79: Michael | C79: 154 | D79: Bellen
A80: 2010-06-19 | B80: Jason | C80: 174 | D80: Sunset
A81: 2010-07-14 | B81: Denise | C81: 181 | D81: Bellen
A82: 2010-06-25 | B82: Sarah | C82: 113 | D82: Bellen
A83: 2010-04-01 | B83: Nelia | C83: 177 | D83: Sunset
A84: 2010-07-12 | B84: Mitchell | C84: 138 | D84: Majestic Beaut
A85: 2010-05-21 | B85: Denise | C85: 175 | D85: Bellen
A86: 2010-04-16 | B86: Ewelina | C86: 149 | D86: Majestic Beaut
A87: 2010-05-11 | B87: Shari | C87: 140 | D87: Majestic Beaut
A88: 2010-05-03 | B88: Michelle | C88: 152 | D88: Carlota
A89: 2010-04-20 | B89: Jason | C89: 104 | D89: Bellen
A90: 2010-06-07 | B90: Daniel | C90: 116 | D90: Majestic Beaut
A91: 2010-05-06 | B91: Chris | C91: 131 | D91: Carlota
A92: 2010-04-07 | B92: Thongtara | C92: 135 | D92: Sunshine
A93: 2010-06-04 | B93: Michelle | C93: 164 | D93: Sunset
A94: 2010-03-27 | B94: Manavbir | C94: 178 | D94: Sunset
A95: 2010-04-08 | B95: Debra | C95: 139 | D95: Sunshine
A96: 2010-05-04 | B96: Carol | C96: 160 | D96: Carlota
A97: 2010-07-07 | B97: Ewelina | C97: 162 | D97: Bellen
A98: 2010-06-19 | B98: Shari | C98: 103 | D98: Sunshine
A99: 2010-05-09 | B99: Kaur | C99: 200 | D99: Carlota
A100: 2010-04-21 | B100: Mansa | C100: 132 | D100: Sunset
A101: 2010-04-12 | B101: Sarah | C101: 133 | D101: Sunshine
A102: 2010-06-23 | B102: Mansa | C102: 187 | D102: Majestic Beaut
A103: 2010-07-22 | B103: Michael | C103: 173 | D103: Majestic Beaut
A104: 2010-06-07 | B104: Chris | C104: 112 | D104: Sunshine
A105: 2010-04-22 | B105: Daniel | C105: 132 | D105: Bellen
A106: 2010-04-27 | B106: Chris | C106: 112 | D106: Sunset
A107: 2010-04-23 | B107: Daniel | C107: 131 | D107: Carlota
A108: 2010-05-25 | B108: Craig | C108: 175 | D108: Sunshine
A109: 2010-07-19 | B109: Craig | C109: 158 | D109: Sunshine
A110: 2010-04-26 | B110: Ewelina | C110: 148 | D110: Bellen
A111: 2010-06-09 | B111: Daniel | C111: 187 | D111: Sunset
A112: 2010-07-07 | B112: Mansa | C112: 168 | D112: Majestic Beaut
A113: 2010-04-25 | B113: Nelia | C113: 116 | D113: Majestic Beaut
A114: 2010-03-26 | B114: Jason | C114: 122 | D114: Carlota
A115: 2010-05-21 | B115: Debra | C115: 160 | D115: Sunshine
A116: 2010-05-13 | B116: Debra | C116: 192 | D116: Carlota
A117: 2010-05-19 | B117: Christina | C117: 154 | D117: Sunset
A118: 2010-04-06 | B118: Jason | C118: 145 | D118: Sunshine
A119: 2010-05-03 | B119: Richard | C119: 178 | D119: Sunshine
A120: 2010-05-04 | B120: Sarah | C120: 112 | D120: Sunset
A121: 2010-07-04 | B121: Elain | C121: 115 | D121: Carlota
A122: 2010-05-25 | B122: Mansa | C122: 146 | D122: Carlota
A123: 2010-06-15 | B123: Debra | C123: 109 | D123: Majestic Beaut
A124: 2010-07-21 | B124: Denise | C124: 172 | D124: Carlota
A125: 2010-05-22 | B125: Daniel | C125: 146 | D125: Sunshine
A126: 2010-06-30 | B126: Richard | C126: 144 | D126: Bellen
A127: 2010-06-23 | B127: Mitchell | C127: 146 | D127: Carlota
A128: 2010-04-28 | B128: Kaur | C128: 105 | D128: Sunshine
A129: 2010-06-25 | B129: Ewelina | C129: 134 | D129: Carlota
A130: 2010-07-11 | B130: Richard | C130: 118 | D130: Carlota
A131: 2010-07-10 | B131: Debra | C131: 132 | D131: Bellen
A132: 2010-05-27 | B132: Carol | C132: 117 | D132: Sunset
A133: 2010-04-03 | B133: Michelle | C133: 194 | D133: Carlota
A134: 2010-04-27 | B134: Debra | C134: 122 | D134: Sunshine
A135: 2010-06-29 | B135: Michelle | C135: 134 | D135: Sunset
A136: 2010-07-11 | B136: Chris | C136: 134 | D136: Sunshine
A137: 2010-03-30 | B137: Elain | C137: 125 | D137: Sunset
A138: 2010-04-05 | B138: Carol | C138: 115 | D138: Majestic Beaut
A139: 2010-04-04 | B139: Christina | C139: 105 | D139: Sunset
A140: 2010-06-24 | B140: Christina | C140: 179 | D140: Bellen
A141: 2010-06-22 | B141: Elain | C141: 114 | D141: Sunset
A142: 2010-06-06 | B142: Elain | C142: 176 | D142: Carlota
A143: 2010-04-25 | B143: Shari | C143: 194 | D143: Sunset
A144: 2010-05-18 | B144: Mitchell | C144: 170 | D144: Majestic Beaut
A145: 2010-07-14 | B145: Ewelina | C145: 144 | D145: Carlota
A146: 2010-05-06 | B146: Christina | C146: 175 | D146: Carlota
A147: 2010-07-22 | B147: Michelle | C147: 185 | D147: Sunshine
A148: 2010-07-02 | B148: Carol | C148: 133 | D148: Majestic Beaut
A149: 2010-05-21 | B149: Sarah | C149: 131 | D149: Sunset
A150: 2010-06-15 | B150: Mansa | C150: 163 | D150: Sunshine
A151: 2010-03-26 | B151: Denise | C151: 120 | D151: Sunshine
A152: 2010-05-04 | B152: Manavbir | C152: 136 | D152: Majestic Beaut
A153: 2010-03-28 | B153: Gianna | C153: 195 | D153: Sunset
A154: 2010-04-21 | B154: Yla-Katrina | C154: 157 | D154: Sunset
A155: 2010-05-27 | B155: Michelle | C155: 187 | D155: Majestic Beaut
A156: 2010-05-15 | B156: Christina | C156: 185 | D156: Carlota
A157: 2010-07-10 | B157: Jason | C157: 154 | D157: Sunset
A158: 2010-06-13 | B158: Jason | C158: 187 | D158: Sunshine
A159: 2010-07-14 | B159: Gianna | C159: 142 | D159: Sunshine
A160: 2010-07-19 | B160: Denise | C160: 132 | D160: Majestic Beaut
A161: 2010-07-11 | B161: Mitchell | C161: 127 | D161: Sunset
A162: 2010-05-27 | B162: Mansa | C162: 184 | D162: Majestic Beaut
A163: 2010-06-23 | B163: Thongtara | C163: 164 | D163: Bellen
A164: 2010-04-28 | B164: Chris | C164: 157 | D164: Sunset
A165: 2010-07-05 | B165: Craig | C165: 186 | D165: Majestic Beaut
A166: 2010-05-23 | B166: Elain | C166: 135 | D166: Carlota
A167: 2010-06-25 | B167: Janita | C167: 194 | D167: Carlota
A168: 2010-04-05 | B168: Thongtara | C168: 177 | D168: Sunset
A169: 2010-05-05 | B169: Mitchell | C169: 143 | D169: Carlota
A170: 2010-05-18 | B170: Manavbir | C170: 152 | D170: Sunset
A171: 2010-06-03 | B171: Nelia | C171: 101 | D171: Sunset
A172: 2010-05-05 | B172: Janita | C172: 110 | D172: Majestic Beaut
A173: 2010-06-15 | B173: Denise | C173: 124 | D173: Carlota
A174: 2010-05-08 | B174: Christina | C174: 102 | D174: Sunshine
A175: 2010-07-16 | B175: Richard | C175: 139 | D175: Sunset
A176: 2010-05-06 | B176: Janita | C176: 152 | D176: Bellen
A177: 2010-05-17 | B177: Janita | C177: 168 | D177: Majestic Beaut
A178: 2010-04-01 | B178: Michael | C178: 151 | D178: Majestic Beaut
A179: 2010-05-06 | B179: Gianna | C179: 137 | D179: Sunshine
A180: 2010-07-13 | B180: Janita | C180: 104 | D180: Carlota
A181: 2010-04-09 | B181: Nelia | C181: 139 | D181: Carlota
A182: 2010-07-04 | B182: Daniel | C182: 147 | D182: Sunshine
A183: 2010-07-09 | B183: Mansa | C183: 190 | D183: Majestic Beaut
A184: 2010-07-19 | B184: Nelia | C184: 159 | D184: Carlota
A185: 2010-03-28 | B185: Manavbir | C185: 112 | D185: Carlota
A186: 2010-05-08 | B186: Christina | C186: 182 | D186: Majestic Beaut
A187: 2010-05-16 | B187: Richard | C187: 121 | D187: Sunset
A188: 2010-05-25 | B188: Kaur | C188: 181 | D188: Majestic Beaut
A189: 2010-06-03 | B189: Craig | C189: 104 | D189: Bellen
A190: 2010-06-01 | B190: Chris | C190: 194 | D190: Sunset
A191: 2010-03-29 | B191: Christina | C191: 178 | D191: Sunshine
A192: 2010-06-27 | B192: Carol | C192: 142 | D192: Sunshine
A193: 2010-04-09 | B193: Mitchell | C193: 191 | D193: Bellen
A194: 2010-06-26 | B194: Sarah | C194: 120 | D194: Bellen
A195: 2010-05-10 | B195: Carol | C195: 155 | D195: Sunshine
A196: 2010-05-03 | B196: Manavbir | C196: 199 | D196: Sunshine
A197: 2010-05-12 | B197: Thongtara | C197: 106 | D197: Sunshine
A198: 2010-04-28 | B198: Elain | C198: 149 | D198: Majestic Beaut
A199: 2010-06-09 | B199: Michelle | C199: 158 | D199: Bellen
A200: 2010-04-01 | B200: Gianna | C200: 144 | D200: Bellen
A201: 2010-05-13 | B201: Daniel | C201: 143 | D201: Bellen
... 570 more rows

Sheet P(3)
A1: Create a formula that will say whether or not the customer gets credit. For our customers ALL criteria must be met in order to extend credit.
A3: Customer | B3: Sales | C3: Asset Value | D3: Credit Score | E3: Extend Credit? | G3: Assumptions
A4: Customer 1 | B4: 343916 | C4: 959920 | D4: 4.1 | G4: Sales | H4: Asset Value | I4: Credit Score
A5: Customer 2 | B5: 275394 | C5: 1040339 | D5: 1.4 | G5: 250000 | H5: 900000 | I5: 2.5
A6: Customer 3 | B6: 256331 | C6: 1008433 | D6: 1.7 | G6: >= | H6: >= | I6: >=
A7: Customer 4 | B7: 431027 | C7: 959975 | D7: 1.1
A8: Customer 5 | B8: 283174 | C8: 963773 | D8: 3.6
A9: Customer 6 | B9: 296303 | C9: 839012 | D9: 3
A10: Customer 7 | B10: 264264 | C10: 866385 | D10: 3.3
A11: Customer 8 | B11: 224181 | C11: 799282 | D11: 1.1
A12: Customer 9 | B12: 267021 | C12: 788125 | D12: 1.4
A13: Customer 10 | B13: 209565 | C13: 963794 | D13: 3.1
A14: Customer 11 | B14: 205064 | C14: 766797 | D14: 2.5
A15: Customer 12 | B15: 307681 | C15: 1000711 | D15: 4.8
A16: Customer 13 | B16: 415514 | C16: 1080614 | D16: 1.4
A17: Customer 14 | B17: 198004 | C17: 1014811 | D17: 2.3
A18: Customer 15 | B18: 133078 | C18: 764241 | D18: 2.6
A19: Customer 16 | B19: 228636 | C19: 798686 | D19: 4.8
A20: Customer 17 | B20: 188991 | C20: 1072008 | D20: 3.6
A21: Customer 18 | B21: 263076 | C21: 1006448 | D21: 4.9
A22: Customer 19 | B22: 352011 | C22: 867680 | D22: 2.5
A23: Customer 20 | B23: 361081 | C23: 1035101 | D23: 1

Sheet P(3an) (hidden)
A1: Create a formula that will say wether or not the customer gets credit. For our customers ALL cretreia must be met in order to extend credit.
A3: Customer | B3: Sales | C3: Asset Value | D3: Credit Score | E3: Extend Credit? | G3: Assumptions
A4: Customer 1 | B4: 343916 | C4: 959920 | D4: 4.1 | E4: =AND(B4>=G$5,C4>=H$5,D4>=I$5) -> TRUE | G4: Sales | H4: Asset Value | I4: Credit Score | K4: =IF(AND(B4>=G$5,C4>=H$5,D4>=I$5),"Extend Credit", "No Credit") -> Extend Credit
A5: Customer 2 | B5: 275394 | C5: 1040339 | D5: 1.4 | E5: FALSE | G5: 250000 | H5: 900000 | I5: 2.5 | K5: =IF(AND(B5>=G$5,C5>=H$5,D5>=I$5),"Extend Credit", "No Credit") -> No Credit
A6: Customer 3 | B6: 256331 | C6: 1008433 | D6: 1.7 | E6: FALSE | G6: >= | H6: >= | I6: >= | K6: No Credit
A7: Customer 4 | B7: 431027 | C7: 959975 | D7: 1.1 | E7: FALSE | K7: No Credit
A8: Customer 5 | B8: 283174 | C8: 963773 | D8: 3.6 | E8: TRUE | K8: Extend Credit
A9: Customer 6 | B9: 296303 | C9: 839012 | D9: 3 | E9: FALSE | K9: No Credit
A10: Customer 7 | B10: 264264 | C10: 866385 | D10: 3.3 | E10: FALSE | K10: No Credit
A11: Customer 8 | B11: 224181 | C11: 799282 | D11: 1.1 | E11: FALSE | K11: No Credit
A12: Customer 9 | B12: 267021 | C12: 788125 | D12: 1.4 | E12: FALSE | K12: No Credit
A13: Customer 10 | B13: 209565 | C13: 963794 | D13: 3.1 | E13: FALSE | K13: No Credit
A14: Customer 11 | B14: 205064 | C14: 766797 | D14: 2.5 | E14: FALSE | K14: No Credit
A15: Customer 12 | B15: 307681 | C15: 1000711 | D15: 4.8 | E15: TRUE | K15: Extend Credit
A16: Customer 13 | B16: 415514 | C16: 1080614 | D16: 1.4 | E16: FALSE | K16: No Credit
A17: Customer 14 | B17: 198004 | C17: 1014811 | D17: 2.3 | E17: FALSE | K17: No Credit
A18: Customer 15 | B18: 133078 | C18: 764241 | D18: 2.6 | E18: FALSE | K18: No Credit
A19: Customer 16 | B19: 228636 | C19: 798686 | D19: 4.8 | E19: FALSE | K19: No Credit
A20: Customer 17 | B20: 188991 | C20: 1072008 | D20: 3.6 | E20: FALSE | K20: No Credit
A21: Customer 18 | B21: 263076 | C21: 1006448 | D21: 4.9 | E21: TRUE | K21: Extend Credit
A22: Customer 19 | B22: 352011 | C22: 867680 | D22: 2.5 | E22: FALSE | K22: No Credit
A23: Customer 20 | B23: 361081 | C23: 1035101 | D23: 1 | E23: FALSE | K23: No Credit

Sheet P(4)
A1: Create a formula that will show just the number part of the ID (Remove first three characters and dash).
A3: Product ID | B3: Just Number Part of Product ID
A4: GRI-6928-810
A5: COO-2223-495
A6: GRI-6793-103
A7: BEE-8735-517
A8: COO-8361-668
A9: RAD-5885-953
A10: GRI-1534-283
A11: RAD-5020-306
A12: BEE-2593-392
A13: COO-7089-755
A14: BEE-2991-247
A15: RAD-6297-147
A16: RAD-2881-515
A17: GRI-6532-660
A18: COO-2992-205
A19: BEE-6094-196
A20: COO-3048-808
A21: BEE-8740-307
A22: BEE-6826-784
A23: GRI-2308-876
A24: GRI-1131-267
A25: RAD-4940-226
A26: RAD-6397-478
A27: BEE-4616-346
A28: RAD-3460-236
A29: BEE-7348-321
A30: BEE-5470-858
A31: GRI-8071-237
A32: COO-5098-393
A33: RAD-4035-400
A34: COO-6688-531
A35: BEE-9205-668
A36: COO-1052-326
A37: COO-9221-984
A38: GRI-9107-444
A39: RAD-6427-855
A40: RAD-1503-728
A41: BEE-9210-135
A42: RAD-7053-928
A43: RAD-2487-304
A44: GRI-8476-454
A45: BEE-3717-318
A46: COO-5841-955
A47: RAD-2400-710
A48: BEE-6928-105
A49: RAD-5292-347
A50: BEE-7862-136
A51: RAD-9372-569
A52: COO-7441-331
A53: COO-8915-170
A54: GRI-5049-152
A55: GRI-5950-467

Sheet P(4an) (hidden)
A1: Create a formula that will show just the number part of the ID (Remove first three characters and dash).
A3: Product ID | B3: Just Number Part of Product ID
A4: GRI-6928-810 | B4: =RIGHT(A4,8) -> 6928-810
A5: COO-2223-495 | B5: 2223-495
A6: GRI-6793-103 | B6: 6793-103
A7: BEE-8735-517 | B7: 8735-517
A8: COO-8361-668 | B8: 8361-668
A9: RAD-5885-953 | B9: 5885-953
A10: GRI-1534-283 | B10: 1534-283
A11: RAD-5020-306 | B11: 5020-306
A12: BEE-2593-392 | B12: 2593-392
A13: COO-7089-755 | B13: 7089-755
A14: BEE-2991-247 | B14: 2991-247
A15: RAD-6297-147 | B15: 6297-147
A16: RAD-2881-515 | B16: 2881-515
A17: GRI-6532-660 | B17: 6532-660
A18: COO-2992-205 | B18: 2992-205
A19: BEE-6094-196 | B19: 6094-196
A20: COO-3048-808 | B20: 3048-808
A21: BEE-8740-307 | B21: 8740-307
A22: BEE-6826-784 | B22: 6826-784
A23: GRI-2308-876 | B23: 2308-876
A24: GRI-1131-267 | B24: 1131-267
A25: RAD-4940-226 | B25: 4940-226
A26: RAD-6397-478 | B26: 6397-478
A27: BEE-4616-346 | B27: 4616-346
A28: RAD-3460-236 | B28: 3460-236
A29: BEE-7348-321 | B29: 7348-321
A30: BEE-5470-858 | B30: 5470-858
A31: GRI-8071-237 | B31: 8071-237
A32: COO-5098-393 | B32: 5098-393
A33: RAD-4035-400 | B33: 4035-400
A34: COO-6688-531 | B34: 6688-531
A35: BEE-9205-668 | B35: 9205-668
A36: COO-1052-326 | B36: =RIGHT(A36,8) -> 1052-326
A37: COO-9221-984 | B37: 9221-984
A38: GRI-9107-444 | B38: 9107-444
A39: RAD-6427-855 | B39: 6427-855
A40: RAD-1503-728 | B40: 1503-728
A41: BEE-9210-135 | B41: 9210-135
A42: RAD-7053-928 | B42: 7053-928
A43: RAD-2487-304 | B43: 2487-304
A44: GRI-8476-454 | B44: 8476-454
A45: BEE-3717-318 | B45: 3717-318
A46: COO-5841-955 | B46: 5841-955
A47: RAD-2400-710 | B47: 2400-710
A48: BEE-6928-105 | B48: 6928-105
A49: RAD-5292-347 | B49: 5292-347
A50: BEE-7862-136 | B50: 7862-136
A51: RAD-9372-569 | B51: 9372-569
A52: COO-7441-331 | B52: 7441-331
A53: COO-8915-170 | B53: 8915-170
A54: GRI-5049-152 | B54: 5049-152
A55: GRI-5950-467 | B55: 5950-467

Sheet P(5)
A4: Create a formula that calculates what date you will be 100 years old.

Sheet P(5an) (hidden)
A4: Create a formula that calculates what date you will be 100 years old.
C7: Birthday | D7: 1971-12-01
C8: How old | D8: 100
C9: On What Date | D9: =EDATE(D7,D8*12) -> 2071-12-01
